[Event "Titled Tuesday Blitz November 30 2021"]
[White "Goryachkina, Aleksandra"]
[Black "Gokerkan, Cem Kaan"]
[WhiteFideId "4147103"]
[BlackFideId "6336760"]
[WhiteElo "2441"]
[BlackElo "2382"]
[Result "0-1"]
[Round "08"]
[TimeControl "180+1"]
[Date "2021.11.30"]
[WhiteClock "0:00:04"]
[BlackClock "0:00:08"]

1. e4 {[%clk 0:02:57]}  g6 {[%clk 0:02:59]} 2. d4 {[%clk 0:02:57]}  Bg7 {[%clk 0:02:59]} 3. Nc3 {[%clk 0:02:55]}  d6 {[%clk 0:03:00]} 4. Be3 {[%clk 0:02:55]}  a6 {[%clk 0:03:00]} 5. a4 {[%clk 0:02:46]}  Nf6 {[%clk 0:02:55]} 6. Nf3 {[%clk 0:02:44]}  O-O {[%clk 0:02:53]} 7. Qd2 {[%clk 0:02:41]}  Bg4 {[%clk 0:02:41]} 8. Be2 {[%clk 0:02:28]}  Nc6 {[%clk 0:02:40]} 9. d5 {[%clk 0:02:14]}  Bxf3 {[%clk 0:02:36]} 10. gxf3 {[%clk 0:02:11]}  Nb4 {[%clk 0:02:31]} 11. h4 {[%clk 0:01:53]}  c6 {[%clk 0:02:12]} 12. dxc6 {[%clk 0:01:47]}  bxc6 {[%clk 0:02:07]} 13. f4 {[%clk 0:01:34]}  Qa5 {[%clk 0:01:53]} 14. Kf1 {[%clk 0:01:25]}  Rfd8 {[%clk 0:01:48]} 15. h5 {[%clk 0:01:04]}  e5 {[%clk 0:01:43]} 16. hxg6 {[%clk 0:00:59]}  fxg6 {[%clk 0:01:14]} 17. f5 {[%clk 0:00:58]}  d5 {[%clk 0:00:57]} 18. fxg6 {[%clk 0:00:45]}  hxg6 {[%clk 0:00:53]} 19. Bh6 {[%clk 0:00:40]}  Rd7 {[%clk 0:00:31]} 20. Bxg7 {[%clk 0:00:23]}  Rxg7 {[%clk 0:00:31]} 21. Qg5 {[%clk 0:00:21]}  Rf8 {[%clk 0:00:22]} 22. Qxe5 {[%clk 0:00:20]}  Nxc2 {[%clk 0:00:19]} 23. Qe6+ {[%clk 0:00:17]}  Rgf7 {[%clk 0:00:16]} 24. Rd1 {[%clk 0:00:17]}  Kg7 {[%clk 0:00:15]} 25. Rg1 {[%clk 0:00:11]}  Qc5 {[%clk 0:00:10]} 26. Qf5 {[%clk 0:00:04]}  Ng4 {[%clk 0:00:08]} 0-1


[Site "https://www.chess.com"]

[Event "Titled Tuesday Blitz November 30 2021"]
[White "Indjic, Aleksandar"]
[Black "Atakishiyev, Elmar"]
[WhiteFideId "911925"]
[BlackFideId "13410547"]
[WhiteElo "2643"]
[BlackElo "2088"]
[Result "1-0"]
[Round "08"]
[TimeControl "180+1"]
[Date "2021.11.30"]
[WhiteClock "0:00:04"]
[BlackClock "0:00:04"]

1. d4 {[%clk 0:03:00]}  Nf6 {[%clk 0:02:58]} 2. c4 {[%clk 0:03:00]}  b6 {[%clk 0:02:58]} 3. Nf3 {[%clk 0:02:57]}  Bb7 {[%clk 0:02:58]} 4. a3 {[%clk 0:02:58]}  e6 {[%clk 0:02:58]} 5. Bf4 {[%clk 0:02:58]}  Be7 {[%clk 0:02:41]} 6. Nc3 {[%clk 0:02:56]}  O-O {[%clk 0:02:42]} 7. e3 {[%clk 0:02:52]}  d5 {[%clk 0:02:41]} 8. cxd5 {[%clk 0:02:46]}  Nxd5 {[%clk 0:02:41]} 9. Nxd5 {[%clk 0:02:45]}  Bxd5 {[%clk 0:02:40]} 10. Bd3 {[%clk 0:02:41]}  c5 {[%clk 0:02:39]} 11. dxc5 {[%clk 0:02:37]}  Bxc5 {[%clk 0:02:38]} 12. Qc2 {[%clk 0:02:36]}  g6 {[%clk 0:02:32]} 13. Rd1 {[%clk 0:02:34]}  Qc8 {[%clk 0:02:19]} 14. Be4 {[%clk 0:02:30]}  Nd7 {[%clk 0:02:04]} 15. O-O {[%clk 0:02:29]}  Nf6 {[%clk 0:02:04]} 16. Bxd5 {[%clk 0:02:29]}  Nxd5 {[%clk 0:02:04]} 17. Bg3 {[%clk 0:02:25]}  Nxe3 {[%clk 0:02:05]} 18. Qe4 {[%clk 0:01:43]}  Nxf1 {[%clk 0:02:04]} 19. Rxf1 {[%clk 0:01:35]}  f6 {[%clk 0:02:03]} 20. h4 {[%clk 0:01:33]}  e5 {[%clk 0:02:03]} 21. h5 {[%clk 0:01:30]}  Qf5 {[%clk 0:01:52]} 22. Qc4+ {[%clk 0:01:29]}  Kh8 {[%clk 0:01:47]} 23. b4 {[%clk 0:01:28]}  Be7 {[%clk 0:01:42]} 24. hxg6 {[%clk 0:01:25]}  hxg6 {[%clk 0:01:41]} 25. Nh4 {[%clk 0:01:24]}  Qg5 {[%clk 0:01:17]} 26. Qc7 {[%clk 0:01:13]}  Rae8 {[%clk 0:01:16]} 27. Rd1 {[%clk 0:01:11]}  Rf7 {[%clk 0:00:59]} 28. Rd7 {[%clk 0:01:09]}  Kg7 {[%clk 0:00:55]} 29. Nf3 {[%clk 0:00:49]}  Qf5 {[%clk 0:00:53]} 30. Qxa7 {[%clk 0:00:48]}  Qb1+ {[%clk 0:00:46]} 31. Kh2 {[%clk 0:00:45]}  Kf8 {[%clk 0:00:37]} 32. Bh4 {[%clk 0:00:19]}  Rh7 {[%clk 0:00:17]} 33. g3 {[%clk 0:00:17]}  g5 {[%clk 0:00:14]} 34. Qxb6 {[%clk 0:00:16]}  Qf5 {[%clk 0:00:09]} 35. Qb7 {[%clk 0:00:16]}  gxh4 {[%clk 0:00:07]} 36. Nxh4 {[%clk 0:00:15]}  Qxf2+ {[%clk 0:00:08]} 37. Kh3 {[%clk 0:00:15]}  Qf1+ {[%clk 0:00:08]} 38. Kh2 {[%clk 0:00:15]}  Qe2+ {[%clk 0:00:06]} 39. Kh3 {[%clk 0:00:16]}  e4 {[%clk 0:00:06]} 40. Qd5 {[%clk 0:00:11]}  Rg7 {[%clk 0:00:05]} 41. Qf5 {[%clk 0:00:07]}  Qf3 {[%clk 0:00:06]} 42. Nxf3 {[%clk 0:00:07]}  exf3 {[%clk 0:00:06]} 43. Qxf3 {[%clk 0:00:07]}  Kf7 {[%clk 0:00:06]} 44. Qd5+ {[%clk 0:00:07]}  Kf8 {[%clk 0:00:06]} 45. Qf3 {[%clk 0:00:06]}  Kf7 {[%clk 0:00:06]} 46. Kg2 {[%clk 0:00:06]}  Reg8 {[%clk 0:00:06]} 47. Kf2 {[%clk 0:00:06]}  Re8 {[%clk 0:00:06]} 48. Rb7 {[%clk 0:00:07]}  Rg5 {[%clk 0:00:07]} 49. Qb3+ {[%clk 0:00:06]}  Kf8 {[%clk 0:00:07]} 50. Qf3 {[%clk 0:00:06]}  Re5 {[%clk 0:00:07]} 51. a4 {[%clk 0:00:07]}  Bd6 {[%clk 0:00:08]} 52. a5 {[%clk 0:00:07]}  Be7 {[%clk 0:00:06]} 53. a6 {[%clk 0:00:07]}  Rd8 {[%clk 0:00:06]} 54. Kg2 {[%clk 0:00:05]}  Rd2+ {[%clk 0:00:06]} 55. Kh3 {[%clk 0:00:06]}  Red5 {[%clk 0:00:03]} 56. a7 {[%clk 0:00:06]}  R5d3 {[%clk 0:00:04]} 57. a8=Q+ {[%clk 0:00:06]}  Kf7 {[%clk 0:00:04]} 58. Qh5+ {[%clk 0:00:05]}  Ke6 {[%clk 0:00:04]} 59. Rxe7+ {[%clk 0:00:05]}  Kxe7 {[%clk 0:00:04]} 60. Qae8+ {[%clk 0:00:05]}  Kd6 {[%clk 0:00:04]} 61. Qc5# {[%clk 0:00:04]} 1-0


[Site "https://www.chess.com"]

[Event "Titled Tuesday Blitz November 30 2021"]
[White "Koutlas, Nikolaos"]
[Black "Ozen, Bahadir"]
[WhiteFideId "25827138"]
[BlackFideId "6337058"]
[WhiteElo "1525"]
[BlackElo "2503"]
[Result "0-1"]
[Round "08"]
[TimeControl "180+1"]
[Date "2021.11.30"]
[WhiteClock "0:00:03"]
[BlackClock "0:00:21"]

1. e4 {[%clk 0:03:00]}  c6 {[%clk 0:02:57]} 2. Nf3 {[%clk 0:02:56]}  d5 {[%clk 0:02:57]} 3. Nc3 {[%clk 0:02:57]}  Bg4 {[%clk 0:02:57]} 4. h3 {[%clk 0:02:56]}  Bxf3 {[%clk 0:02:57]} 5. gxf3 {[%clk 0:02:56]}  e6 {[%clk 0:02:46]} 6. d3 {[%clk 0:02:53]}  Nd7 {[%clk 0:02:39]} 7. h4 {[%clk 0:02:52]}  h5 {[%clk 0:02:38]} 8. Be3 {[%clk 0:02:46]}  g6 {[%clk 0:02:35]} 9. Qd2 {[%clk 0:02:44]}  Bg7 {[%clk 0:02:33]} 10. d4 {[%clk 0:02:41]}  Ne7 {[%clk 0:02:32]} 11. a4 {[%clk 0:02:33]}  a5 {[%clk 0:02:13]} 12. Ra3 {[%clk 0:02:26]}  Nc8 {[%clk 0:02:03]} 13. Rb3 {[%clk 0:02:21]}  Ra7 {[%clk 0:01:59]} 14. Bg5 {[%clk 0:02:07]}  Qc7 {[%clk 0:01:42]} 15. Bf4 {[%clk 0:01:55]}  Qd8 {[%clk 0:01:42]} 16. Qe3 {[%clk 0:01:49]}  O-O {[%clk 0:01:41]} 17. Kd1 {[%clk 0:01:41]}  c5 {[%clk 0:01:30]} 18. Nb5 {[%clk 0:01:35]}  cxd4 {[%clk 0:01:30]} 19. Qd2 {[%clk 0:01:30]}  Nc5 {[%clk 0:01:20]} 20. Ra3 {[%clk 0:01:11]}  dxe4 {[%clk 0:01:01]} 21. Nxa7 {[%clk 0:01:09]}  Nxa7 {[%clk 0:01:02]} 22. Kc1 {[%clk 0:01:00]}  Nc6 {[%clk 0:00:59]} 23. fxe4 {[%clk 0:00:55]}  Nxe4 {[%clk 0:00:57]} 24. Qe1 {[%clk 0:00:53]}  Nc5 {[%clk 0:00:54]} 25. Bc4 {[%clk 0:00:48]}  Qb6 {[%clk 0:00:50]} 26. Rg1 {[%clk 0:00:42]}  d3 {[%clk 0:00:40]} 27. c3 {[%clk 0:00:39]}  Rd8 {[%clk 0:00:40]} 28. Bd2 {[%clk 0:00:23]}  Ne5 {[%clk 0:00:35]} 29. Bb5 {[%clk 0:00:05]}  Nf3 {[%clk 0:00:35]} 30. Qf1 {[%clk 0:00:04]}  Nxg1 {[%clk 0:00:27]} 31. Qxg1 {[%clk 0:00:04]}  Qd6 {[%clk 0:00:28]} 32. Qg2 {[%clk 0:00:02]}  Qe5 {[%clk 0:00:23]} 33. Ra2 {[%clk 0:00:02]}  Nb3+ {[%clk 0:00:19]} 34. Kd1 {[%clk 0:00:02]}  Nxd2 {[%clk 0:00:20]} 35. Kxd2 {[%clk 0:00:02]}  Qe2+ {[%clk 0:00:20]} 36. Kc1 {[%clk 0:00:03]}  Qc2# {[%clk 0:00:21]} 0-1


[Site "https://www.chess.com"]

[Event "Titled Tuesday Blitz November 30 2021"]
[White "Leiva, Gianmarco"]
[Black "Sanal, Vahap"]
[WhiteFideId "3804399"]
[BlackFideId "6300545"]
[WhiteElo "2318"]
[BlackElo "2499"]
[Result "1-0"]
[Round "08"]
[TimeControl "180+1"]
[Date "2021.11.30"]
[WhiteClock "0:00:16"]
[BlackClock "0:01:29"]

1. e4 {[%clk 0:02:43]}  e5 {[%clk 0:02:59]} 2. Nf3 {[%clk 0:02:43]}  Nf6 {[%clk 0:02:59]} 3. d4 {[%clk 0:02:40]}  Nxe4 {[%clk 0:02:58]} 4. dxe5 {[%clk 0:02:36]}  d5 {[%clk 0:02:57]} 5. Bd3 {[%clk 0:02:36]}  Qd7 {[%clk 0:02:56]} 6. O-O {[%clk 0:02:18]}  Nc5 {[%clk 0:02:53]} 7. Be2 {[%clk 0:02:14]}  Ne6 {[%clk 0:02:51]} 8. c3 {[%clk 0:02:01]}  g6 {[%clk 0:02:48]} 9. Nd4 {[%clk 0:01:50]}  c5 {[%clk 0:02:44]} 10. Nxe6 {[%clk 0:01:40]}  fxe6 {[%clk 0:02:44]} 11. c4 {[%clk 0:01:37]}  d4 {[%clk 0:02:40]} 12. Nd2 {[%clk 0:01:37]}  Bg7 {[%clk 0:02:39]} 13. f4 {[%clk 0:01:36]}  O-O {[%clk 0:02:37]} 14. Ne4 {[%clk 0:01:36]}  b6 {[%clk 0:02:35]} 15. Bd3 {[%clk 0:01:29]}  Bb7 {[%clk 0:02:34]} 16. Bd2 {[%clk 0:01:29]}  Nc6 {[%clk 0:02:33]} 17. Qe2 {[%clk 0:01:29]}  Ne7 {[%clk 0:02:33]} 18. g4 {[%clk 0:01:24]}  Qc6 {[%clk 0:02:32]} 19. b3 {[%clk 0:01:11]}  Rad8 {[%clk 0:02:28]} 20. Rf2 {[%clk 0:01:11]}  Nf5 {[%clk 0:02:24]} 21. gxf5 {[%clk 0:01:02]}  exf5 {[%clk 0:02:14]} 22. Ng3 {[%clk 0:01:01]}  h5 {[%clk 0:02:11]} 23. h4 {[%clk 0:00:55]}  Rde8 {[%clk 0:02:05]} 24. Qf1 {[%clk 0:00:43]}  Kh7 {[%clk 0:01:57]} 25. Be2 {[%clk 0:00:41]}  Qd7 {[%clk 0:01:55]} 26. Bf3 {[%clk 0:00:41]}  Bxf3 {[%clk 0:01:54]} 27. Rxf3 {[%clk 0:00:42]}  Qd8 {[%clk 0:01:54]} 28. Qh3 {[%clk 0:00:41]}  d3 {[%clk 0:01:55]} 29. Bc3 {[%clk 0:00:38]}  Rf7 {[%clk 0:01:50]} 30. Rd1 {[%clk 0:00:35]}  Rd7 {[%clk 0:01:51]} 31. Nf1 {[%clk 0:00:30]}  Qa8 {[%clk 0:01:45]} 32. Rfxd3 {[%clk 0:00:29]}  Rxd3 {[%clk 0:01:42]} 33. Qxd3 {[%clk 0:00:30]}  Bh6 {[%clk 0:01:41]} 34. Qd7+ {[%clk 0:00:26]}  Bg7 {[%clk 0:01:41]} 35. Qd5 {[%clk 0:00:25]}  Qb8 {[%clk 0:01:39]} 36. Nh2 {[%clk 0:00:22]}  Bh6 {[%clk 0:01:36]} 37. Qf7+ {[%clk 0:00:22]}  Bg7 {[%clk 0:01:32]} 38. Rd7 {[%clk 0:00:19]}  Rg8 {[%clk 0:01:31]} 39. Nf3 {[%clk 0:00:19]}  Qa8 {[%clk 0:01:28]} 40. Ng5+ {[%clk 0:00:19]}  Kh6 {[%clk 0:01:29]} 41. e6 {[%clk 0:00:16]} 1-0


[Site "https://www.chess.com"]

[Event "Titled Tuesday Blitz November 30 2021"]
[White "Madaminov, Mukhiddin"]
[Black "Pour Agha Bala, Amirreza"]
[WhiteFideId "14210703"]
[BlackFideId "12572896"]
[WhiteElo "1855"]
[BlackElo "2313"]
[Result "1/2-1/2"]
[Round "08"]
[TimeControl "180+1"]
[Date "2021.11.30"]
[WhiteClock "0:00:14"]
[BlackClock "0:00:20"]

1. e4 {[%clk 0:03:00]}  c5 {[%clk 0:02:59]} 2. Nf3 {[%clk 0:03:00]}  e6 {[%clk 0:03:00]} 3. d4 {[%clk 0:03:00]}  cxd4 {[%clk 0:03:00]} 4. Nxd4 {[%clk 0:03:01]}  Nc6 {[%clk 0:03:00]} 5. Nc3 {[%clk 0:03:02]}  a6 {[%clk 0:02:59]} 6. g3 {[%clk 0:03:02]}  Nge7 {[%clk 0:02:58]} 7. Nb3 {[%clk 0:02:57]}  g6 {[%clk 0:02:56]} 8. Bg2 {[%clk 0:02:55]}  Bg7 {[%clk 0:02:55]} 9. O-O {[%clk 0:02:54]}  O-O {[%clk 0:02:55]} 10. Bf4 {[%clk 0:02:50]}  e5 {[%clk 0:02:47]} 11. Be3 {[%clk 0:02:47]}  d6 {[%clk 0:02:43]} 12. Qd2 {[%clk 0:02:44]}  Qc7 {[%clk 0:02:39]} 13. Rad1 {[%clk 0:02:32]}  Rd8 {[%clk 0:02:37]} 14. Na4 {[%clk 0:02:33]}  Bg4 {[%clk 0:02:32]} 15. Bb6 {[%clk 0:02:32]}  Qd7 {[%clk 0:02:30]} 16. Bxd8 {[%clk 0:02:28]}  Rxd8 {[%clk 0:02:31]} 17. f3 {[%clk 0:02:21]}  Be6 {[%clk 0:02:30]} 18. Qe3 {[%clk 0:02:17]}  b5 {[%clk 0:02:22]} 19. Nc3 {[%clk 0:02:07]}  Nd4 {[%clk 0:02:18]} 20. Nxd4 {[%clk 0:01:58]}  exd4 {[%clk 0:02:19]} 21. Rxd4 {[%clk 0:01:58]}  Qa7 {[%clk 0:02:00]} 22. Rfd1 {[%clk 0:01:55]}  b4 {[%clk 0:01:59]} 23. Ne2 {[%clk 0:01:41]}  d5 {[%clk 0:01:54]} 24. R4d3 {[%clk 0:01:29]}  d4 {[%clk 0:01:54]} 25. Nxd4 {[%clk 0:01:25]}  Nc6 {[%clk 0:01:52]} 26. c3 {[%clk 0:01:21]}  Ne5 {[%clk 0:01:51]} 27. Kf2 {[%clk 0:01:11]}  Nxd3+ {[%clk 0:01:49]} 28. Rxd3 {[%clk 0:01:10]}  bxc3 {[%clk 0:01:43]} 29. bxc3 {[%clk 0:00:57]}  Bc4 {[%clk 0:01:41]} 30. Rd2 {[%clk 0:00:55]}  Qc7 {[%clk 0:01:38]} 31. f4 {[%clk 0:00:52]}  Qa5 {[%clk 0:01:36]} 32. e5 {[%clk 0:00:50]}  Bf8 {[%clk 0:01:34]} 33. Bf1 {[%clk 0:00:37]}  Bxa2 {[%clk 0:01:33]} 34. Kg1 {[%clk 0:00:21]}  Bc5 {[%clk 0:01:29]} 35. f5 {[%clk 0:00:21]}  Bd5 {[%clk 0:01:29]} 36. e6 {[%clk 0:00:20]}  fxe6 {[%clk 0:01:27]} 37. fxg6 {[%clk 0:00:21]}  hxg6 {[%clk 0:01:25]} 38. Qg5 {[%clk 0:00:21]}  Qc7 {[%clk 0:01:19]} 39. Rf2 {[%clk 0:00:14]}  Rf8 {[%clk 0:01:11]} 40. Qxg6+ {[%clk 0:00:13]}  Qg7 {[%clk 0:01:11]} 41. Qxg7+ {[%clk 0:00:03]}  Kxg7 {[%clk 0:01:12]} 42. Rxf8 {[%clk 0:00:03]}  Kxf8 {[%clk 0:01:12]} 43. Kf2 {[%clk 0:00:03]}  e5 {[%clk 0:01:09]} 44. Bxa6 {[%clk 0:00:02]}  exd4 {[%clk 0:01:07]} 45. cxd4 {[%clk 0:00:03]}  Bxd4+ {[%clk 0:01:08]} 46. Kf1 {[%clk 0:00:03]}  Kg7 {[%clk 0:01:07]} 47. Bc8 {[%clk 0:00:04]}  Kf6 {[%clk 0:01:05]} 48. Bh3 {[%clk 0:00:04]}  Ke5 {[%clk 0:01:03]} 49. Bg2 {[%clk 0:00:04]}  Bc4+ {[%clk 0:01:02]} 50. Ke1 {[%clk 0:00:05]}  Bc5 {[%clk 0:01:02]} 51. Bf3 {[%clk 0:00:04]}  Kd4 {[%clk 0:01:01]} 52. Kf2 {[%clk 0:00:04]}  Kd3+ {[%clk 0:01:00]} 53. Kg2 {[%clk 0:00:05]}  Ke3 {[%clk 0:01:00]} 54. Ba8 {[%clk 0:00:05]}  Be2 {[%clk 0:00:57]} 55. h4 {[%clk 0:00:05]}  Bg4 {[%clk 0:00:56]} 56. Bb7 {[%clk 0:00:04]}  Be7 {[%clk 0:00:54]} 57. Ba8 {[%clk 0:00:04]}  Bc5 {[%clk 0:00:52]} 58. Bb7 {[%clk 0:00:04]}  Be2 {[%clk 0:00:51]} 59. Bd5 {[%clk 0:00:05]}  Kd2 {[%clk 0:00:48]} 60. Bf3 {[%clk 0:00:04]}  Bd3 {[%clk 0:00:47]} 61. g4 {[%clk 0:00:05]}  Ke3 {[%clk 0:00:45]} 62. g5 {[%clk 0:00:03]}  Kf4 {[%clk 0:00:44]} 63. Bd1 {[%clk 0:00:02]}  Be3 {[%clk 0:00:43]} 64. Bf3 {[%clk 0:00:01]}  Bc2 {[%clk 0:00:42]} 65. Be2 {[%clk 0:00:01]}  Be4+ {[%clk 0:00:41]} 66. Kh3 {[%clk 0:00:02]}  Bf5+ {[%clk 0:00:39]} 67. Kg2 {[%clk 0:00:03]}  Be4+ {[%clk 0:00:38]} 68. Kh3 {[%clk 0:00:02]}  Bf2 {[%clk 0:00:37]} 69. Bh5 {[%clk 0:00:03]}  Be1 {[%clk 0:00:35]} 70. g6 {[%clk 0:00:03]}  Bf5+ {[%clk 0:00:32]} 71. Kg2 {[%clk 0:00:03]}  Bxh4 {[%clk 0:00:30]} 72. g7 {[%clk 0:00:03]}  Be6 {[%clk 0:00:29]} 73. Bg6 {[%clk 0:00:03]}  Bf6 {[%clk 0:00:28]} 74. Bh5 {[%clk 0:00:02]}  Bxg7 {[%clk 0:00:27]} 75. Bf3 {[%clk 0:00:03]}  Bd4 {[%clk 0:00:25]} 76. Ba8 {[%clk 0:00:03]}  Bf5 {[%clk 0:00:22]} 77. Kh1 {[%clk 0:00:03]}  Kg3 {[%clk 0:00:20]} 78. Bb7 {[%clk 0:00:03]}  Be3 {[%clk 0:00:18]} 79. Ba8 {[%clk 0:00:03]}  Bh7 {[%clk 0:00:18]} 80. Bb7 {[%clk 0:00:04]}  Bf5 {[%clk 0:00:17]} 81. Ba8 {[%clk 0:00:04]}  Bg4 {[%clk 0:00:17]} 82. Bb7 {[%clk 0:00:04]}  Be2 {[%clk 0:00:17]} 83. Ba8 {[%clk 0:00:04]}  Ba6 {[%clk 0:00:18]} 84. Bc6 {[%clk 0:00:04]}  Bc4 {[%clk 0:00:17]} 85. Ba8 {[%clk 0:00:05]}  Kf4 {[%clk 0:00:18]} 86. Bb7 {[%clk 0:00:05]}  Bd3 {[%clk 0:00:18]} 87. Kg2 {[%clk 0:00:05]}  Bf5 {[%clk 0:00:17]} 88. Ba8 {[%clk 0:00:06]}  Bg4 {[%clk 0:00:17]} 89. Bb7 {[%clk 0:00:06]}  Bd4 {[%clk 0:00:17]} 90. Ba8 {[%clk 0:00:07]}  Bh5 {[%clk 0:00:16]} 91. Bb7 {[%clk 0:00:07]}  Kg5 {[%clk 0:00:17]} 92. Bf3 {[%clk 0:00:07]}  Bg6 {[%clk 0:00:17]} 93. Ba8 {[%clk 0:00:08]}  Be5 {[%clk 0:00:17]} 94. Bf3 {[%clk 0:00:07]}  Bf5 {[%clk 0:00:17]} 95. Ba8 {[%clk 0:00:08]}  Bf4 {[%clk 0:00:17]} 96. Bf3 {[%clk 0:00:09]}  Bd3 {[%clk 0:00:18]} 97. Ba8 {[%clk 0:00:09]}  Kf6 {[%clk 0:00:18]} 98. Bf3 {[%clk 0:00:10]}  Ke5 {[%clk 0:00:18]} 99. Ba8 {[%clk 0:00:11]}  Kd4 {[%clk 0:00:19]} 100. Bf3 {[%clk 0:00:12]}  Ke3 {[%clk 0:00:20]} 101. Ba8 {[%clk 0:00:13]}  Be2 {[%clk 0:00:20]} 102. Bb7 {[%clk 0:00:13]}  Be5 {[%clk 0:00:18]} 103. Ba8 {[%clk 0:00:14]}  Bf4 {[%clk 0:00:18]} 104. Bb7 {[%clk 0:00:14]}  Be5 {[%clk 0:00:19]} 105. Ba8 {[%clk 0:00:14]}  Bf4 {[%clk 0:00:20]} 1/2-1/2


[Site "https://www.chess.com"]

[Event "Titled Tuesday Blitz November 30 2021"]
[White "Maksimovic, Bojan"]
[Black "Poormosavi, Seyed Kian"]
[WhiteFideId "14408120"]
[BlackFideId "12585807"]
[WhiteElo "2439"]
[BlackElo "2134"]
[Result "1-0"]
[Round "08"]
[TimeControl "180+1"]
[Date "2021.11.30"]
[WhiteClock "0:00:41"]
[BlackClock "0:00:22"]

1. e4 {[%clk 0:03:00]}  c6 {[%clk 0:02:58]} 2. d4 {[%clk 0:03:00]}  d5 {[%clk 0:02:53]} 3. Nd2 {[%clk 0:03:00]}  dxe4 {[%clk 0:02:53]} 4. Nxe4 {[%clk 0:03:01]}  Nf6 {[%clk 0:02:54]} 5. Nxf6+ {[%clk 0:03:01]}  exf6 {[%clk 0:02:55]} 6. c3 {[%clk 0:03:01]}  Bf5 {[%clk 0:02:51]} 7. Bd3 {[%clk 0:03:00]}  Bxd3 {[%clk 0:02:51]} 8. Qxd3 {[%clk 0:03:01]}  Bd6 {[%clk 0:02:52]} 9. Qe4+ {[%clk 0:03:01]}  Qe7 {[%clk 0:02:51]} 10. Qxe7+ {[%clk 0:03:02]}  Kxe7 {[%clk 0:02:52]} 11. Ne2 {[%clk 0:03:02]}  Re8 {[%clk 0:02:53]} 12. Bf4 {[%clk 0:02:59]}  Na6 {[%clk 0:02:51]} 13. O-O-O {[%clk 0:02:57]}  Nc7 {[%clk 0:02:51]} 14. Rhe1 {[%clk 0:02:55]}  Bxf4+ {[%clk 0:02:50]} 15. Nxf4+ {[%clk 0:02:55]}  Kd7 {[%clk 0:02:45]} 16. Nh5 {[%clk 0:02:55]}  Rxe1 {[%clk 0:02:42]} 17. Rxe1 {[%clk 0:02:55]}  Ne8 {[%clk 0:02:43]} 18. Kc2 {[%clk 0:02:46]}  g6 {[%clk 0:02:43]} 19. Nf4 {[%clk 0:02:46]}  Nd6 {[%clk 0:02:42]} 20. Nd3 {[%clk 0:02:45]}  b6 {[%clk 0:02:42]} 21. b3 {[%clk 0:02:40]}  Re8 {[%clk 0:02:36]} 22. Rxe8 {[%clk 0:02:39]}  Kxe8 {[%clk 0:02:37]} 23. c4 {[%clk 0:02:33]}  Kd7 {[%clk 0:02:38]} 24. Nf4 {[%clk 0:02:19]}  g5 {[%clk 0:02:28]} 25. Nh5 {[%clk 0:02:16]}  Ne8 {[%clk 0:02:25]} 26. Kd3 {[%clk 0:02:13]}  Ke6 {[%clk 0:02:26]} 27. Ng3 {[%clk 0:01:50]}  f5 {[%clk 0:02:25]} 28. f4 {[%clk 0:01:46]}  f6 {[%clk 0:02:19]} 29. Ne2 {[%clk 0:01:37]}  h5 {[%clk 0:02:09]} 30. g3 {[%clk 0:01:31]}  Kd6 {[%clk 0:01:57]} 31. h4 {[%clk 0:01:30]}  g4 {[%clk 0:01:44]} 32. Nc3 {[%clk 0:01:25]}  Nc7 {[%clk 0:01:40]} 33. b4 {[%clk 0:01:20]}  Ke6 {[%clk 0:01:40]} 34. a4 {[%clk 0:01:20]}  Kd6 {[%clk 0:01:40]} 35. c5+ {[%clk 0:01:11]}  Ke6 {[%clk 0:01:31]} 36. Kc4 {[%clk 0:01:10]}  Kd7 {[%clk 0:01:22]} 37. d5 {[%clk 0:00:51]}  bxc5 {[%clk 0:01:19]} 38. Kxc5 {[%clk 0:00:48]}  Na6+ {[%clk 0:01:18]} 39. Kc4 {[%clk 0:00:48]}  Nb8 {[%clk 0:01:18]} 40. dxc6+ {[%clk 0:00:45]}  Kxc6 {[%clk 0:01:16]} 41. b5+ {[%clk 0:00:43]}  Kd6 {[%clk 0:01:15]} 42. a5 {[%clk 0:00:42]}  Nd7 {[%clk 0:01:15]} 43. Na4 {[%clk 0:00:43]}  Nb8 {[%clk 0:00:54]} 44. Nc5 {[%clk 0:00:42]}  a6 {[%clk 0:00:19]} 45. Nxa6 {[%clk 0:00:36]}  Nxa6 {[%clk 0:00:17]} 46. bxa6 {[%clk 0:00:36]}  Kc6 {[%clk 0:00:18]} 47. a7 {[%clk 0:00:36]}  Kb7 {[%clk 0:00:18]} 48. Kd5 {[%clk 0:00:36]}  Kxa7 {[%clk 0:00:19]} 49. Ke6 {[%clk 0:00:37]}  Ka6 {[%clk 0:00:19]} 50. Kxf6 {[%clk 0:00:37]}  Kxa5 {[%clk 0:00:20]} 51. Kxf5 {[%clk 0:00:38]}  Kb5 {[%clk 0:00:21]} 52. Kg5 {[%clk 0:00:39]}  Kc5 {[%clk 0:00:22]} 53. Kxh5 {[%clk 0:00:40]}  Kb5 {[%clk 0:00:22]} 54. Kxg4 {[%clk 0:00:41]} 1-0


[Site "https://www.chess.com"]

[Event "Titled Tuesday Blitz November 30 2021"]
[White "Nagy, Gabor"]
[Black "Kollars, Dmitrij"]
[WhiteFideId "737119"]
[BlackFideId "12909572"]
[WhiteElo "2534"]
[BlackElo "2584"]
[Result "0-1"]
[Round "08"]
[TimeControl "180+1"]
[Date "2021.11.30"]
[WhiteClock "0:01:06"]
[BlackClock "0:00:37"]

1. Nf3 {[%clk 0:03:00]}  d5 {[%clk 0:02:58]} 2. g3 {[%clk 0:02:59]}  Nc6 {[%clk 0:02:57]} 3. Bg2 {[%clk 0:03:00]}  e5 {[%clk 0:02:56]} 4. d3 {[%clk 0:03:00]}  g6 {[%clk 0:02:52]} 5. O-O {[%clk 0:02:58]}  Bg7 {[%clk 0:02:52]} 6. Nbd2 {[%clk 0:02:52]}  Nge7 {[%clk 0:02:50]} 7. e4 {[%clk 0:02:51]}  O-O {[%clk 0:02:50]} 8. exd5 {[%clk 0:02:50]}  Nxd5 {[%clk 0:02:51]} 9. Re1 {[%clk 0:02:50]}  Re8 {[%clk 0:02:49]} 10. c3 {[%clk 0:02:47]}  Bf5 {[%clk 0:02:23]} 11. Ne4 {[%clk 0:02:43]}  h6 {[%clk 0:02:14]} 12. a4 {[%clk 0:02:40]}  a5 {[%clk 0:02:13]} 13. Qb3 {[%clk 0:02:33]}  b6 {[%clk 0:02:10]} 14. Nfd2 {[%clk 0:02:25]}  Be6 {[%clk 0:02:08]} 15. Qc2 {[%clk 0:02:25]}  f5 {[%clk 0:02:03]} 16. Nc4 {[%clk 0:01:48]}  fxe4 {[%clk 0:02:03]} 17. Bxe4 {[%clk 0:01:49]}  Bf5 {[%clk 0:01:31]} 18. Qb3 {[%clk 0:01:41]}  Nce7 {[%clk 0:01:30]} 19. Ne3 {[%clk 0:01:26]}  Be6 {[%clk 0:01:28]} 20. Qc2 {[%clk 0:01:26]}  Nxe3 {[%clk 0:01:24]} 21. Bxe3 {[%clk 0:01:27]}  Bd5 {[%clk 0:01:21]} 22. Rad1 {[%clk 0:01:26]}  Qd7 {[%clk 0:01:11]} 23. d4 {[%clk 0:01:22]}  Bxe4 {[%clk 0:01:03]} 24. Qxe4 {[%clk 0:01:23]}  Qxa4 {[%clk 0:00:51]} 25. b3 {[%clk 0:01:13]}  Qc6 {[%clk 0:00:47]} 26. d5 {[%clk 0:01:13]}  Qd7 {[%clk 0:00:45]} 27. d6 {[%clk 0:01:11]}  cxd6 {[%clk 0:00:43]} 28. Bxb6 {[%clk 0:01:11]}  d5 {[%clk 0:00:42]} 29. Qe2 {[%clk 0:01:09]}  Kh7 {[%clk 0:00:40]} 30. c4 {[%clk 0:01:08]}  d4 {[%clk 0:00:38]} 31. h4 {[%clk 0:01:06]}  h5 {[%clk 0:00:37]} 0-1


[Site "https://www.chess.com"]